bitfinex/quotes_SOLUSD_20250316
["timestamp","ask_amount","ask_price","bid_price","bid_amount"]
[1742137468978,29.85082037,129.49,129.45,21.5697]
[1742137469179,29.85082037,129.5,129.45,51.42052037]
[1742137470582,7.22,129.52,129.48,29.85082037]
[1742137471267,37.05082037,129.53,129.48,29.85082037]
[1742137472775,29.85082037,129.52,129.48,29.85082037]
[1742137472980,29.85082037,129.52,129.47,29.85082037]
[1742137473189,29.85082037,129.52,129.48,29.85082037]
[1742137473395,29.85082037,129.52,129.5,20.0]
[1742137473897,7.2,129.53,129.48,29.85082037]
[1742137474194,37.05082037,129.53,129.48,29.85082037]
[1742137475693,29.85082037,129.51,129.47,29.85082037]
[1742137475872,29.85082037,129.5,129.48,20.0]
[1742137476574,29.85082037,129.5,129.45,31.42052037]
[1742137477100,29.85082037,129.49,129.45,1.5697]
[1742137477469,29.85082037,129.48,129.45,1.5697]
[1742137478295,37.01082037,129.48,129.45,1.5697]
[1742137478694,7.16,129.48,129.45,51.42052037]
[1742137479076,37.01082037,129.5,129.45,51.42052037]
[1742137479790,29.85082037,129.48,129.45,1.5697]
[1742137481000,29.85082037,129.47,129.45,0.063]
[1742137481192,29.85082037,129.48,129.45,0.063]
[1742137481798,29.85082037,129.47,129.45,0.063]
[1742137482997,29.85082037,129.46,129.45,0.063]
[1742137484988,29.85082037,129.48,129.45,0.063]
[1742137485489,29.85082037,129.47,129.45,0.063]
[1742137486695,29.85082037,129.46,129.45,0.063]
[1742137495208,18.6705452,129.46,129.45,0.063]
[1742137496403,45.3288172,129.46,129.45,0.063]
[1742137497699,45.3288172,129.46,129.44,0.063]
[1742137497990,33.4754452,129.45,129.44,0.063]
[1742137500299,25.7505452,129.45,129.44,0.063]
[1742137500609,25.7305452,129.45,129.44,0.063]
[1742137501689,52.3894172,129.45,129.44,0.063]
[1742137501998,52.3894172,129.45,129.37,1.6121]
[1742137502203,18.6705452,129.4,129.37,1.6121]
[1742137502404,25.7305452,129.4,129.37,1.6121]
[1742137502599,18.6705452,129.39,129.37,1.6121]
[1742137502992,25.7305452,129.4,129.37,1.6121]
[1742137503902,7.06,129.4,129.37,1.6121]
[1742137504111,7.06,129.4,129.37,20.2826452]
[1742137504406,18.6705452,129.42,129.37,20.2826452]
[1742137505407,18.6705452,129.41,129.37,20.2826452]
[1742137505624,18.6705452,129.4,129.37,1.6121]
[1742137506818,18.6705452,129.39,129.37,1.6121]
[1742137507716,18.6705452,129.39,129.37,0.063]
[1742137508118,18.6705452,129.4,129.37,0.063]
[1742137508926,18.6705452,129.38,129.37,0.063]
[1742137509226,25.7305452,129.38,129.37,0.063]
[1742137510721,25.87270677,129.38,129.37,0.063]
[1742137513925,33.60180677,129.38,129.37,0.063]
[1742137514117,25.87270677,129.38,129.37,0.063]
[1742137515105,52.3936172,129.38,129.37,0.063]
[1742137516406,18.933972,129.37,129.32,0.063]
[1742137516608,18.6705452,129.33,129.32,0.063]
[1742137516927,25.7105452,129.33,129.32,0.063]
[1742137518010,7.04,129.33,129.32,0.063]
[1742137518216,25.7105452,129.36,129.32,0.063]
[1742137518606,7.04,129.36,129.32,18.7335452]
[1742137519520,25.7105452,129.36,129.32,18.7335452]
[1742137519819,25.7105452,129.36,129.32,0.063]
[1742137521824,7.04,129.36,129.32,0.063]
[1742137521999,7.04,129.36,129.32,18.7335452]
[1742137522200,0.14216157,129.4,129.34,18.6705452]
[1742137522408,25.7105452,129.39,129.34,18.6705452]
[1742137523114,18.6705452,129.39,129.35,18.6705452]
[1742137523314,18.6705452,129.41,129.35,1.5425]
[1742137523520,7.04,129.4,129.36,18.6705452]
[1742137523822,18.6705452,129.41,129.36,18.6705452]
[1742137524027,25.7105452,129.41,129.36,18.6705452]
[1742137524829,18.6705452,129.4,129.35,26.4470452]
[1742137525423,18.6705452,129.39,129.35,26.4470452]
[1742137525615,18.6705452,129.39,129.35,7.7765]
[1742137527535,18.6705452,129.4,129.35,26.4470452]
[1742137528438,18.6705452,129.39,129.35,7.7765]
[1742137528735,18.6705452,129.37,129.35,7.7765]
[1742137529124,18.6705452,129.37,129.35,1.5425]
[1742137529326,18.6705452,129.36,129.32,7.7571]
[1742137529531,18.6705452,129.37,129.32,26.4276452]
[1742137530616,18.6705452,129.37,129.32,7.7571]
[1742137531018,18.6705452,129.37,129.32,26.4276452]
[1742137531217,18.6705452,129.36,129.32,26.4276452]
[1742137531709,18.6705452,129.35,129.32,7.7571]
[1742137531913,18.6705452,129.33,129.32,0.063]
[1742137533511,18.6705452,129.34,129.32,0.063]
[1742137534111,18.6705452,129.35,129.32,0.063]
[1742137534414,18.6705452,129.34,129.32,0.063]
[1742137534613,18.6705452,129.33,129.32,0.063]
[1742137535026,18.6705452,129.34,129.32,0.063]
[1742137536138,18.6705452,129.35,129.32,0.063]
[1742137536841,18.6705452,129.34,129.32,0.063]
[1742137539138,26.54480677,129.33,129.32,0.063]
[1742137539314,18.81270677,129.33,129.32,0.063]
[1742137539831,18.6705452,129.33,129.32,0.063]
[1742137542130,0.14216157,129.32,129.31,0.063]
[1742137542331,56.2750624,129.32,129.3,0.063]
[1742137542536,37.6045172,129.31,129.3,0.063]
[1742137543338,45.3378172,129.31,129.3,0.063]
[1742137544119,64.0083624,129.31,129.3,0.063]
[1742137544415,18.81270677,129.31,129.3,0.063]
[1742137544616,26.54600677,129.31,129.3,0.063]
[1742137545023,18.81270677,129.31,129.3,0.063]
[1742137545436,26.54600677,129.31,129.3,0.063]
[1742137546234,18.81270677,129.31,129.3,0.063]
[1742137546643,26.54600677,129.31,129.3,0.063]
[1742137547245,18.81270677,129.31,129.3,0.063]
[1742137547720,64.0083624,129.31,129.3,0.063]
[1742137549347,0.14216157,129.29,129.28,0.063]
[1742137549525,33.58720677,129.29,129.28,0.063]
[1742137551328,25.85270677,129.29,129.28,0.063]
[1742137552450,38.933972,129.25,129.24,0.063]
[1742137552752,76.2750624,129.25,129.24,0.063]
[1742137553043,84.0119624,129.25,129.24,0.063]
[1742137553627,65.3414172,129.25,129.24,0.063]
[1742137554931,84.0119624,129.25,129.24,0.063]
[1742137558046,57.6045172,129.25,129.24,0.063]
[1742137558253,57.6045172,129.25,129.23,0.03]
[1742137558552,25.87270677,129.24,129.23,0.03]
[1742137558928,25.7305452,129.25,129.23,0.03]
[1742137559140,0.14216157,129.27,129.23,0.03]
[1742137559141,25.7305452,129.26,129.23,0.03]
[1742137559327,7.06,129.26,129.23,0.03]
[1742137559528,18.6705452,129.25,129.23,0.03]
[1742137560033,18.6705452,129.24,129.23,0.03]
[1742137560237,37.46235563,129.24,129.23,0.03]
[1742137560432,38.79181043,129.22,129.21,0.063]
[1742137560738,57.46235563,129.22,129.21,0.063]
[1742137561037,64.52235563,129.22,129.21,0.063]
[1742137561239,7.06,129.22,129.21,0.063]
[1742137561442,25.7305452,129.22,129.21,0.063]
[1742137563241,7.06,129.22,129.21,0.063]
[1742137563450,25.7305452,129.22,129.21,0.063]
[1742137564843,44.52235563,129.22,129.21,0.063]
[1742137565053,52.4032172,129.22,129.21,0.063]
[1742137567080,52.4032172,129.22,129.17,6.4796]
[1742137567081,20.0,129.2,129.17,0.063]
[1742137567360,20.0,129.14,129.12,1.6322]
[1742137567545,18.933972,129.17,129.12,1.6322]
[1742137567546,25.7305452,129.13,129.12,1.6322]
[1742137567747,7.06,129.13,129.1,6.5678]
[1742137567927,25.7305452,129.13,129.1,6.5678]
[1742137568434,37.46235563,129.12,129.09,0.063]
[1742137568752,18.6705452,129.12,129.09,0.063]
[1742137569537,37.46235563,129.15,129.1,18.6705452]
[1742137569760,7.06,129.17,129.12,18.6705452]
[1742137570065,7.06,129.17,129.09,0.063]
[1742137570066,18.6705452,129.15,129.1,18.6705452]
[1742137570227,18.6705452,129.16,129.12,1.6322]
[1742137570432,7.06,129.17,129.12,1.6322]
[1742137570433,7.06,129.17,129.13,25.2383452]
[1742137570936,25.7305452,129.17,129.13,6.5678]
[1742137573244,7.06,129.17,129.13,25.2383452]
[1742137573639,18.6705452,129.18,129.13,25.2383452]
[1742137573836,18.6705452,129.22,129.17,18.6705452]
[1742137574451,0.063,129.23,129.17,18.6705452]
[1742137574757,18.6705452,129.22,129.17,18.6705452]
[1742137575841,18.6705452,129.21,129.16,38.6705452]
[1742137577354,7.143,129.23,129.2,25.1760452]
[1742137578066,0.063,129.23,129.2,25.1760452]
[1742137578434,0.063,129.23,129.21,18.6705452]
[1742137578975,0.063,129.23,129.22,18.6705452]
[1742137579144,0.063,129.23,129.21,18.6705452]
[1742137580432,18.6705452,129.22,129.2,6.5055]
[1742137581043,18.6705452,129.22,129.17,26.8206452]
[1742137582060,18.6705452,129.19,129.17,8.1501]
[1742137582451,18.6705452,129.2,129.17,8.1501]
[1742137582658,18.6705452,129.19,129.17,1.6446]
[1742137582854,18.6705452,129.18,129.16,0.03]
[1742137583361,18.6705452,129.2,129.16,0.03]
[1742137583739,18.6705452,129.21,129.16,18.7005452]
[1742137585149,18.6705452,129.21,129.17,18.6705452]
[1742137585562,7.08,129.22,129.17,18.6705452]
[1742137585861,18.6705452,129.21,129.17,18.6705452]
[1742137586238,7.08,129.22,129.18,18.6705452]
[1742137586441,0.063,129.23,129.2,18.6705452]
[1742137587058,0.063,129.23,129.21,18.6705452]
[1742137587443,0.063,129.23,129.2,18.6705452]
[1742137587643,18.7335452,129.23,129.19,8.1501]
[1742137588146,18.6705452,129.22,129.19,8.1501]
[1742137588349,18.6705452,129.22,129.19,1.6446]
[1742137588542,18.6705452,129.21,129.16,46.7927452]
[1742137588865,0.28432314,129.19,129.16,0.03]
[1742137589166,18.6705452,129.17,129.16,0.03]
[1742137589459,18.6705452,129.17,129.09,0.063]
[1742137589460,0.14216157,129.13,129.09,1.6497]
[1742137589643,18.6705452,129.11,129.09,1.6497]
[1742137589838,18.6705452,129.11,129.09,0.063]
[1742137589839,18.6705452,129.1,129.09,0.063]
[1742137590953,7.1,129.11,129.09,0.063]
[1742137591158,37.13225633,129.11,129.09,0.063]
[1742137591869,7.1,129.11,129.09,0.063]
[1742137592975,0.14216157,129.14,129.1,30.03225633]
[1742137592976,7.1,129.14,129.1,30.03225633]
[1742137593279,37.13225633,129.14,129.1,30.03225633]
[1742137593949,7.1,129.14,129.11,30.03225633]
[1742137594449,7.1,129.14,129.12,30.03225633]
[1742137594652,55.94406676,129.17,129.12,30.03225633]
[1742137595371,30.03225633,129.19,129.14,30.03225633]
[1742137595584,7.12,129.18,129.14,30.03225633]
[1742137595951,30.03225633,129.17,129.12,31.61895633]
[1742137596150,30.03225633,129.15,129.11,6.4797]
[1742137596380,30.03225633,129.13,129.09,0.063]
[1742137596988,30.03225633,129.14,129.09,30.09525633]
[1742137597677,30.03225633,129.13,129.09,30.09525633]
[1742137597884,37.15225633,129.13,129.09,0.063]
[1742137598957,7.12,129.13,129.09,30.09525633]
[1742137599775,7.12,129.13,129.1,30.03225633]
[1742137599952,30.03225633,129.18,129.09,0.063]
[1742137599953,18.933972,129.19,129.12,30.03225633]
[1742137600147,7.12,129.16,129.13,30.03225633]
[1742137600969,7.12,129.16,129.12,30.03225633]
[1742137601359,37.15225633,129.16,129.12,30.03225633]
[1742137601561,7.12,129.16,129.12,30.03225633]
[1742137602054,30.03225633,129.2,129.15,30.03225633]
[1742137602261,7.12,129.2,129.16,30.03225633]
[1742137602459,30.1744179,129.22,129.17,30.03225633]
[1742137602678,37.15225633,129.21,129.16,30.03225633]
[1742137603774,37.15225633,129.21,129.15,8.0664]
[1742137603956,37.15225633,129.21,129.16,30.03225633]
[1742137606158,30.03225633,129.22,129.17,30.03225633]
[1742137606487,30.03225633,129.22,129.15,8.0664]
[1742137606488,37.19525633,129.23,129.18,30.03225633]
[1742137607761,30.03225633,129.22,129.17,30.03225633]
[1742137607961,30.03225633,129.21,129.16,30.03225633]
[1742137608360,7.163,129.23,129.17,30.03225633]
[1742137608564,30.03225633,129.22,129.17,30.03225633]
[1742137609268,0.14216157,129.21,129.13,30.03225633]
[1742137609475,30.03225633,129.16,129.12,6.374]
[1742137610579,7.1,129.17,129.13,30.03225633]
[1742137612066,7.1,129.2,129.16,30.03225633]
[1742137612569,7.1,129.2,129.12,36.40625633]
[1742137612570,37.13225633,129.2,129.15,30.03225633]
[1742137615771,37.13225633,129.2,129.15,30.06225633]
[1742137616981,30.03225633,129.18,129.15,0.03]
[1742137620591,18.79181043,129.19,129.15,0.03]
[1742137620893,30.03225633,129.18,129.15,0.03]
[1742137621100,37.13225633,129.2,129.15,30.06225633]
[1742137621278,7.1,129.2,129.16,30.03225633]
[1742137621767,30.03225633,129.21,129.16,30.03225633]
[1742137621972,7.1,129.2,129.16,30.03225633]
[1742137622487,7.1,129.2,129.17,30.03225633]
[1742137622993,7.1,129.2,129.15,0.03]
[1742137622994,0.063,129.23,129.22,20.0]
[1742137623171,0.063,129.23,129.22,50.03225633]
[1742137623786,12.11128041,129.28,129.27,30.03225633]
[1742137624891,12.05998041,129.28,129.27,30.03225633]
[1742137625076,12.00868041,129.28,129.27,30.1744179]
[1742137625389,12.00868041,129.28,129.27,55.48512833]
[1742137625712,0.03,129.31,129.3,18.933972]
[1742137625897,0.03,129.31,129.3,78.99848466]
[1742137626394,0.063,129.35,129.3,78.99848466]
[1742137626614,0.063,129.35,129.34,30.03225633]
[1742137627799,0.063,129.35,129.3,20.0]
[1742137628110,0.063,129.35,129.32,30.03225633]
[1742137628591,0.063,129.35,129.3,20.0]
[1742137628910,0.063,129.35,129.34,30.03225633]
[1742137629482,0.063,129.35,129.34,30.1744179]
[1742137630718,0.063,129.35,129.34,30.03225633]
[1742137631587,0.063,129.35,129.34,48.96622833]
[1742137631790,0.063,129.35,129.34,78.99848466]
[1742137632097,0.063,129.36,129.35,25.27331043]
[1742137632294,0.063,129.36,129.35,85.33782309]
[1742137632894,0.063,129.36,129.35,36.6559179]
[1742137633245,0.063,129.36,129.35,36.51375633]
[1742137633711,0.063,129.36,129.35,30.03225633]
[1742137634017,0.063,129.36,129.33,30.03225633]
[1742137634317,0.063,129.36,129.32,30.03225633]
[1742137634697,30.09525633,129.36,129.31,36.60735633]
[1742137635096,0.063,129.36,129.32,30.03225633]
[1742137636512,0.063,129.36,129.33,30.03225633]
[1742137636724,0.063,129.36,129.31,6.5751]
[1742137636919,30.03225633,129.35,129.3,30.03225633]
[1742137637122,30.03225633,129.35,129.28,0.14216157]
[1742137637437,30.03225633,129.35,129.3,50.03225633]
[1742137637799,30.09525633,129.36,129.31,30.03225633]
[1742137638229,0.063,129.36,129.32,30.03225633]
[1742137638407,0.063,129.36,129.35,30.03225633]
[1742137639327,0.063,129.36,129.32,30.03225633]
[1742137639530,30.03225633,129.35,129.3,50.03225633]
[1742137639920,29.95620483,129.35,129.3,50.03225633]
[1742137641027,0.063,129.36,129.32,30.03225633]
[1742137641231,0.063,129.35,129.32,30.03225633]
[1742137641638,0.063,129.35,129.34,30.03225633]
[1742137642212,0.063,129.35,129.34,30.1744179]
[1742137642415,0.063,129.35,129.34,30.03225633]
[1742137643513,0.063,129.35,129.34,30.1744179]
[1742137644510,0.063,129.35,129.34,30.03225633]
[1742137645430,30.03225633,129.39,129.34,30.03225633]
[1742137645834,30.03225633,129.37,129.32,30.03225633]
[1742137646840,7.06,129.36,129.31,30.03225633]
[1742137647046,37.09225633,129.36,129.31,30.03225633]
[1742137648123,7.06,129.36,129.33,30.03225633]
[1742137648526,30.03225633,129.39,129.34,30.03225633]
[1742137649139,37.12225633,129.4,129.35,30.03225633]
[1742137649336,30.06225633,129.4,129.35,30.03225633]
[1742137649825,30.03225633,129.37,129.32,30.03225633]
[1742137650555,30.03225633,129.36,129.31,30.03225633]
[1742137650845,30.03225633,129.35,129.3,30.03225633]
[1742137651632,30.03225633,129.32,129.27,30.03225633]
[1742137651848,18.64964886,129.35,129.25,30.03225633]
[1742137651849,30.03225633,129.3,129.25,30.03225633]
[1742137652137,30.03225633,129.31,129.26,30.03225633]
[1742137652442,30.03225633,129.32,129.27,30.03225633]
[1742137652646,30.03225633,129.31,129.26,30.03225633]
[1742137653232,30.03225633,129.32,129.27,50.03225633]
[1742137653438,30.03225633,129.34,129.29,30.03225633]
[1742137654323,0.03,129.35,129.33,30.03225633]
[1742137654535,0.03,129.35,129.34,30.03225633]
[1742137655154,0.03,129.35,129.34,30.1744179]
[1742137655329,0.03,129.35,129.34,78.99848466]
[1742137656736,0.03,129.35,129.34,48.96622833]
[1742137657138,0.03,129.35,129.34,63.75862519]
[1742137657849,0.03,129.4,129.37,20.0]
[1742137658051,0.03,129.4,129.37,64.82465319]
[1742137658347,0.03,129.4,129.37,20.0]
[1742137658848,0.03,129.4,129.38,44.82465319]
[1742137659147,0.03,129.4,129.37,20.0]
[1742137659148,0.03,129.4,129.39,44.82465319]
[1742137659346,0.03,129.4,129.38,44.82465319]
[1742137659758,0.03,129.4,129.37,44.82465319]
[1742137660638,0.03,129.4,129.37,20.0]
[1742137660839,44.85465319,129.4,129.35,44.82465319]
[1742137663758,44.85465319,129.4,129.35,20.0]
[1742137664052,44.85465319,129.4,129.35,64.82465319]
[1742137664459,44.82465319,129.37,129.32,44.82465319]
[1742137664634,44.82465319,129.37,129.29,0.14216157]
[1742137664833,44.82465319,129.37,129.31,44.82465319]
[1742137665041,44.82465319,129.37,129.32,44.82465319]
[1742137666356,44.82465319,129.34,129.3,0.14216157]
[1742137666561,44.82465319,129.33,129.28,44.82465319]
[1742137666964,44.82465319,129.33,129.26,44.82465319]
[1742137666965,44.82465319,129.31,129.26,44.82465319]
[1742137667253,44.82465319,129.31,129.28,20.0]
[1742137668150,46.47165319,129.3,129.25,0.063]
[1742137668345,1.647,129.3,129.25,44.88765319]
[1742137669550,46.47165319,129.3,129.25,44.88765319]
[1742137670054,1.647,129.3,129.25,44.88765319]
[1742137670259,1.647,129.3,129.26,44.82465319]
[1742137670454,1.647,129.3,129.27,44.82465319]
[1742137670639,6.2949,129.32,129.27,44.82465319]
[1742137671143,51.11955319,129.32,129.27,44.82465319]
[1742137671639,44.82465319,129.31,129.26,44.82465319]
[1742137671843,44.82465319,129.29,129.25,0.063]
[1742137673056,6.2949,129.32,129.25,44.88765319]
[1742137673244,51.11955319,129.32,129.27,44.82465319]
[1742137673737,44.82465319,129.3,129.25,44.88765319]
[1742137674149,44.82465319,129.31,129.25,44.88765319]
[1742137674354,6.2949,129.32,129.27,44.82465319]
[1742137674355,51.11955319,129.32,129.27,44.82465319]
[1742137674555,58.17955319,129.32,129.27,44.82465319]
[1742137675051,44.82465319,129.31,129.26,44.82465319]
[1742137676158,44.82465319,129.31,129.25,0.063]
[1742137676159,44.82465319,129.29,129.25,0.063]
[1742137677161,29.94883723,129.29,129.25,0.063]
[1742137677355,29.94883723,129.28,129.25,0.063]
[1742137677560,29.94883723,129.27,129.25,0.063]
[1742137678360,29.94883723,129.28,129.25,0.063]
[1742137680558,29.94883723,129.26,129.25,0.063]
[1742137684054,55.18450923,129.26,129.25,0.063]
[1742137684570,36.25053723,129.26,129.25,0.063]
[1742137685166,37.89383723,129.3,129.25,0.063]
[1742137685360,44.93383723,129.3,129.25,30.01183723]
[1742137685564,1.6433,129.3,129.26,29.94883723]
[1742137685787,31.59213723,129.3,129.25,30.01183723]
[1742137686572,29.94883723,129.29,129.25,0.063]
[1742137687278,1.6433,129.3,129.26,29.94883723]
[1742137688581,31.59213723,129.3,129.25,30.01183723]
[1742137689473,7.04,129.31,129.28,29.94883723]
[1742137689771,1.6433,129.33,129.3,29.94883723]
[1742137690153,29.97883723,129.35,129.3,29.94883723]
[1742137690372,29.94883723,129.31,129.26,29.94883723]
[1742137690863,29.94883723,129.29,129.25,0.063]
[1742137691060,29.94883723,129.28,129.25,0.063]
[1742137691368,29.94883723,129.27,129.25,0.063]
[1742137691676,29.94883723,129.26,129.25,0.063]
[1742137694797,63.65910923,129.26,129.25,0.063]
[1742137694957,29.94883723,129.22,129.17,29.97883723]
[1742137695553,29.94883723,129.21,129.17,0.03]
[1742137695794,29.94883723,129.2,129.17,0.03]
[1742137695964,29.94883723,129.19,129.17,0.03]
[1742137697688,48.74064766,129.18,129.17,0.03]
[1742137698072,7.7407,129.19,129.17,0.03]
[1742137698305,18.79181043,129.2,129.17,0.03]
[1742137698472,36.98883723,129.21,129.17,0.03]
[1742137698673,29.94883723,129.19,129.17,0.03]
[1742137698886,37.68933723,129.19,129.17,0.03]
[1742137699093,29.94883723,129.18,129.17,0.03]
[1742137700687,48.74064766,129.18,129.17,0.03]
[1742137700882,56.48174766,129.18,129.17,0.03]
[1742137701086,86.43058489,129.18,129.17,0.03]
[1742137702801,86.57274646,129.18,129.17,0.03]
[1742137703188,86.43058489,129.18,129.17,0.03]
[1742137703383,56.48174766,129.18,129.17,0.03]
[1742137703896,20.45681043,129.17,129.16,0.03]
[1742137704086,29.94883723,129.13,129.12,0.063]
[1742137704288,36.98883723,129.13,129.12,0.063]
[1742137704482,55.78064766,129.13,129.12,0.063]
[1742137704690,93.61574646,129.13,129.12,0.063]
[1742137705197,63.66690923,129.13,129.12,0.063]
[1742137705375,7.04,129.13,129.12,0.063]
[1742137705576,36.98883723,129.13,129.12,0.063]
[1742137705879,37.00883723,129.13,129.12,0.063]
[1742137707000,7.06,129.13,129.12,0.063]
[1742137707597,37.00883723,129.13,129.12,0.063]
[1742137710096,7.06,129.13,129.12,0.063]
[1742137710406,29.94883723,129.14,129.12,0.063]
[1742137715013,36.98883723,129.15,129.12,0.063]
[1742137715192,29.94883723,129.17,129.12,30.01183723]
[1742137715391,37.00883723,129.17,129.12,30.01183723]
[1742137715586,7.06,129.17,129.12,30.01183723]
[1742137716207,37.00883723,129.17,129.12,0.063]
[1742137716412,37.00883723,129.17,129.12,30.01183723]
[1742137716594,29.94883723,129.19,129.13,29.94883723]
[1742137716793,37.00883723,129.19,129.13,29.94883723]
[1742137717100,29.94883723,129.18,129.13,29.94883723]
[1742137717695,29.94883723,129.16,129.12,6.2693]
[1742137718008,29.94883723,129.17,129.12,36.21813723]
[1742137718589,29.94883723,129.17,129.12,6.2693]
[1742137719006,29.94883723,129.18,129.14,29.94883723]
[1742137719211,29.94883723,129.19,129.14,29.94883723]
[1742137719407,29.94883723,129.2,129.15,29.94883723]
[1742137719719,29.94883723,129.22,129.17,29.94883723]
[1742137720901,29.94883723,129.21,129.16,29.94883723]
[1742137721100,29.94883723,129.21,129.15,0.14216157]
[1742137721101,29.94883723,129.19,129.15,20.0]
[1742137722925,29.94883723,129.18,129.13,29.94883723]
[1742137723219,29.94883723,129.17,129.12,36.21813723]
[1742137724294,29.94883723,129.16,129.12,6.2693]
[1742137724703,29.94883723,129.17,129.12,36.21813723]
[1742137726412,29.94883723,129.16,129.12,6.2693]
[1742137727197,29.94883723,129.15,129.12,0.063]
[1742137728221,29.94883723,129.16,129.12,0.063]
[1742137729403,29.94883723,129.15,129.12,0.063]
[1742137729606,29.94883723,129.14,129.12,0.063]
[1742137730721,29.94883723,129.13,129.12,0.063]
[1742137732218,29.94883723,129.14,129.12,0.063]
[1742137734333,29.94883723,129.13,129.12,0.063]
[1742137734823,29.94883723,129.14,129.12,0.063]
[1742137735613,29.94883723,129.16,129.12,0.063]
[1742137736518,7.04,129.19,129.13,29.94883723]
[1742137736718,29.94883723,129.15,129.12,20.063]
[1742137736916,29.94883723,129.15,129.12,0.063]
[1742137738135,30.01183723,129.16,129.12,0.063]
[1742137739231,29.94883723,129.15,129.12,0.063]
[1742137743130,18.82011093,129.16,129.12,0.063]
[1742137743833,18.75711093,129.15,129.12,0.063]
[1742137746531,18.75711093,129.14,129.12,0.063]
[1742137747626,18.75711093,129.13,129.12,0.063]
[1742137750035,25.79711093,129.14,129.12,0.063]
[1742137750234,0.063,129.16,129.12,0.063]
[1742137750417,0.063,129.16,129.12,18.82011093]
[1742137750609,18.82011093,129.16,129.12,0.063]
[1742137755446,18.75711093,129.15,129.12,0.063]
[1742137755648,18.75711093,129.14,129.12,0.063]
[1742137755941,18.75711093,129.13,129.12,0.063]
[1742137756722,7.04,129.14,129.12,0.063]
[1742137756942,0.063,129.16,129.12,0.063]
[1742137757137,18.82011093,129.16,129.12,0.063]
[1742137757344,18.75711093,129.15,129.12,0.063]
[1742137758546,0.063,129.16,129.12,20.063]
[1742137759048,18.82011093,129.16,129.12,20.063]
[1742137760543,18.82011093,129.16,129.12,26.6087]
[1742137760733,0.063,129.16,129.12,26.6087]
[1742137760940,0.063,129.16,129.12,45.36581093]
[1742137761752,18.75711093,129.15,129.12,26.6087]
[1742137762840,18.82011093,129.16,129.12,26.6087]
[1742137763625,0.063,129.16,129.12,26.6087]
[1742137763942,0.063,129.16,129.12,45.36581093]
[1742137764144,0.063,129.16,129.14,18.75711093]
[1742137764440,0.063,129.16,129.15,18.75711093]
[1742137765644,0.063,129.16,129.14,18.75711093]
[1742137766050,0.063,129.16,129.15,18.75711093]
[1742137767155,0.0001,129.16,129.15,18.75711093]
[1742137767529,0.0001,129.16,129.15,18.8992725]
[1742137768650,0.0001,129.16,129.15,18.75711093]
[1742137769048,0.0001,129.16,129.15,18.8992725]
[1742137769240,0.0001,129.16,129.15,119.19108293]
[1742137769446,0.0001,129.16,129.15,133.017434]
[1742137769648,0.0001,129.16,129.15,133.517434]
[1742137770153,0.0001,129.16,129.15,133.017434]
[1742137774556,0.063,129.25,129.19,20.0]
[1742137774758,0.063,129.25,129.22,18.75711093]
[1742137775433,0.063,129.25,129.23,18.75711093]
[1742137776639,0.063,129.25,129.22,18.75711093]
[1742137777040,18.82011093,129.25,129.2,100.3992725]
[1742137777252,18.82011093,129.25,129.2,81.5]
[1742137777447,18.75711093,129.24,129.2,81.5]
[1742137778960,18.75711093,129.24,129.19,38.75711093]
[1742137779145,18.82011093,129.25,129.2,38.75711093]
[1742137779348,0.063,129.25,129.21,18.75711093]
[1742137780349,18.82011093,129.25,129.2,38.75711093]
[1742137780542,18.82011093,129.25,129.2,20.0]
[1742137780862,18.75711093,129.24,129.2,20.0]
[1742137781162,20.40871093,129.25,129.2,38.75711093]
[1742137782063,1.6516,129.25,129.21,18.75711093]
[1742137782963,20.40871093,129.25,129.2,38.75711093]
[1742137783567,0.063,129.25,129.22,18.75711093]
[1742137784565,0.063,129.25,129.21,38.75711093]
[1742137785666,0.063,129.25,129.22,18.75711093]
[1742137786952,0.063,129.25,129.24,18.75711093]
[1742137787164,0.063,129.29,129.24,18.75711093]